[Event "Festival Groningen-A 2024"]
[Site "Groningen"]
[Date "2024.12.27"]
[Round "6.12"]
[White "Okuno, Rion"]
[Black "Labruyere, Roger"]
[Result "1/2-1/2"]
[ECO "B90"]
[WhiteElo "2027"]
[BlackElo "2344"]
[Annotator "TA"]
[PlyCount "109"]
[EventDate "2024.12.21"]
[EventType "swiss"]
[EventCountry "NED"]
[SourceTitle "playchess.com"]
[Source "ChessBase"]
[SourceQuality "1"]
[TimeControl "40/5400+30:1800+30"]

{[%evp 18,109,35,23,42,16,26,29,40,43,37,20,67,58,81,59,77,85,142,145,132,143,139,131,139,147,191,189,227,177,171,155,145,134,183,0,52,73,63,83,58,0,0,0,0,0,0,-8,-15,-89,-36,-36,-37,-87,-81,-88,-81,-82,-82,-88,-81,-284,-86,-86,-86,-87,-87,-87,-35,-39,-25,-25,-26,-33,-26,-52,-8,-61,-61,-66,-66,-64,-57,-59,0,0,0,0,0,0,0,0,0,0]} 1. e4 {[%emt 0:00:02]} c5 {[%emt 0:00:05]} 2. Nf3 {[%emt 0:00:06]} d6 {[%emt 0:00:02]} 3. d4 {[%emt 0:00:06]} cxd4 {[%emt 0:00:04]} 4. Nxd4 {[%emt 0:00:04]} Nf6 {[%emt 0:00:06]} 5. Nc3 {[%emt 0:00:09]} a6 {[%emt 0:00:04]} 6. f3 {[%emt 0:00:18]} e5 {[%emt 0:00:06]} 7. Nb3 {[%emt 0:00:03]} Be6 {[%emt 0:00:08]} 8. Be3 {[%emt 0:00:07]} Be7 {[%emt 0:00:26]} 9. Qd2 {[%emt 0:00:04]} h5 {[%emt 0:00:07]} 10. Be2 {[%emt 0:00:05]} Nbd7 {[%emt 0:00:14]} 11. Nd5 {[%emt 0:00:04] Inhibits Qc7.} Bxd5 {[%emt 0:05:16]} 12. exd5 {[%emt 0:00:05]} Rc8 {[%emt 0:02:00]} 13. Rc1 {[%emt 0:08:43]} O-O {[%emt 0:04:50]} 14. O-O {[%emt 0:04:33]} g6 {[%emt 0:03:53]} (14... b5 $11) 15. Na5 $14 {[%emt 0:01:52]} Qc7 {[%emt 0:03:19]} 16. c4 {[%emt 0:00:27]} Bd8 {[%emt 0:00:04]} 17. b4 {[%emt 0:03:09][%cal Bb2b4,Bb4c5][%mdl 32]} Re8 {[%emt 0:06:41]} ({Black should play} 17... Qb8) 18. c5 $16 {[%emt 0:16:05]} dxc5 {[%emt 0:02:49]} 19. d6 {[%emt 0:11:17]} Qb8 {[%emt 0:06:12]} 20. bxc5 {[%emt 0:00:29] White is much more active.} Bxa5 {[%emt 0:05:12]} 21. Qxa5 {[%emt 0:00:08]} Rc6 {[%emt 0:00:17]} 22. Rfd1 {[%emt 0:17:26]} Rec8 {[%emt 0:05:08]} 23. a4 {[%emt 0:09:50]} Nxc5 {[%emt 0:11:20]} 24. Bxc5 {[%emt 0:03:56]} b6 {[%emt 0:00:15]} 25. Qxa6 {[%emt 0:04:34]} bxc5 {[%emt 0:00:49]} (25... Rxc5 $16 {was necessary.} 26. Rxc5 Rxc5) 26. Qd3 $2 {[%emt 0:01:42]} ({White has to play} 26. Rb1 $1 $18 {[%cal Rb1b8]} Qxb1 27. Qxc8+ (27. Rxb1 Rxa6 28. Bxa6 Rc6 $18) 27... Rxc8 28. Rxb1) 26... Rd8 {[%emt 0:09:02]} (26... c4 $11 27. Qa3 Qa7+ 28. Kh1 Rc5 (28... c3 29. Bb5 $14)) 27. Qb5 $14 {[%emt 0:01:07]} Rcxd6 {[%emt 0:09:19]} 28. Rxd6 {[%emt 0:04:38]} (28. Qxc5 Rxd1+ 29. Rxd1 Rxd1+ 30. Bxd1 Qb1 $11) 28... Qxd6 {[%emt 0:00:05]} 29. Rd1 {[%emt 0:00:03] Inhibits Qd4+.} (29. Qxc5 $14 Qb8 30. Qc7) 29... Qc7 {[%emt 0:00:57]} (29... Nd5 $2 30. Bc4 $18) 30. Rxd8+ {[%emt 0:00:06]} Qxd8 {[%emt 0:00:01]} 31. Qxc5 $11 {[%emt 0:00:07][%mdl 4096] Endgame KQB-KQN} Qd2 {[%emt 0:00:36]} 32. Kf2 {[%emt 0:02:18]} Nd5 {[%emt 0:01:26][%cal Oe5e4]} 33. g3 {[%emt 0:03:23] [#]} (33. h3 $1 $11) 33... e4 $1 $17 {[%emt 0:03:07]} 34. fxe4 {[%emt 0:01:58]} Nc3 {[%emt 0:00:06]} 35. Qc8+ {[%emt 0:03:18]} (35. Qc4 $1 $15) 35... Kg7 {[%emt 0:00:24]} 36. Qa6 {[%emt 0:00:18]} Nxe4+ {[%emt 0:01:11]} 37. Kf3 {[%emt 0:00:59]} Ng5+ {[%emt 0:02:12]} 38. Kf2 {[%emt 0:01:17]} Qd4+ {[%emt 0:00:12]} 39. Ke1 $2 {[%emt 0:00:37]} (39. Kf1 $17) 39... Ne4 $2 {[%emt 0:01:02]} (39... Qg1+ $19 {is more deadly.} 40. Kd2 Ne4+ (40... Qxh2 41. Qd3 $17) 41. Kc2 Qxh2) 40. Qd3 {[%emt 0:02:25]} Qxa4 {[%emt 0:01:46]} 41. Kf1 {[%emt 0:04:31]} Qa1+ {[%emt 0:00:04]} 42. Kg2 {[%emt 0:01:41]} Qe5 {[%emt 0:00:05]} (42... Nf6 $17) 43. Qe3 $15 {[%emt 0:02:06]} f5 {[%emt 0:06:40]} 44. Qa7+ {[%emt 0:06:05]} Kf6 {[%emt 0:08:24]} 45. Qh7 {[%emt 0:04:34]} Qe8 {[%emt 0:00:32] and ...Ng5 would now be decisive Repels Qh8+} 46. Qb7 {[%emt 0:00:43]} g5 {[%emt 0:05:49]} 47. Qb6+ {[%emt 0:01:36]} ({White should play} 47. Qh7 $1 $11) 47... Kg7 $1 {[%emt 0:00:18]} 48. Qb7+ {[%emt 0:00:42]} Kh6 {[%emt 0:01:43]} 49. Qa6+ {[%emt 0:01:46]} Qg6 {[%emt 0:00:12]} 50. Qc8 {[%emt 0:00:25]} Nf6 {[%emt 0:00:44]} (50... Qf6 $15) 51. Bd3 $11 {[%emt 0:00:37]} Ne4 {[%emt 0:01:33]} 52. Bxe4 {[%emt 0:00:30]} fxe4 {[%emt 0:00:04]} 53. Qh8+ {[%emt 0:00:11]} Qh7 {[%emt 0:00:03]} 54. Qf6+ {[%emt 0:00:09]} Qg6 {[%emt 0:00:04]} 55. Qh8+ {[%emt 0:14:26]} 1/2-1/2

[Event "Festival Groningen-A 2024"]
[Site "Groningen"]
[Date "2024.12.27"]
[Round "6.13"]
[White "Dolzhykova, Kateryna"]
[Black "Laxman, R.R."]
[Result "0-1"]
[ECO "C29"]
[WhiteElo "2322"]
[BlackElo "2310"]
[Annotator "RC"]
[PlyCount "112"]
[EventDate "2024.12.21"]
[EventType "swiss"]
[EventCountry "NED"]
[SourceTitle "playchess.com"]
[Source "ChessBase"]
[SourceQuality "1"]
[TimeControl "40/5400+30:1800+30"]

1. e4 {[%emt 0:00:03]} e5 {[%emt 0:00:05]} 2. Nc3 {[%emt 0:00:06]} Nf6 {[%emt 0:00:06]} 3. f4 {[%emt 0:00:06]} d5 {[%emt 0:00:11]} 4. fxe5 {[%emt 0:00:04]} Nxe4 {[%emt 0:00:05]} 5. Nf3 {[%emt 0:00:10]} Nc6 {[%emt 0:00:12]} 6. Bb5 {[%emt 0:00:25]} Bb4 {[%emt 0:00:08]} 7. Qe2 {[%emt 0:03:39]} Bf5 {[%emt 0:04:51]} 8. a3 {[%emt 0:10:05]} Ba5 {[%emt 0:03:57]} 9. O-O {[%emt 0:02:01]} O-O {[%emt 0:00:16]} 10. Na4 {[%emt 0:02:52]} Ne7 {[%emt 0:16:28]} 11. d3 {[%emt 0:04:26]} a6 {[%emt 0:02:59]} 12. dxe4 {[%emt 0:05:23]} dxe4 {[%emt 0:00:10]} 13. Nh4 {[%emt 0:05:58]} axb5 {[%emt 0:01:46]} 14. Bg5 {[%emt 0:11:51]} Be6 {[%emt 0:02:11]} 15. Nc3 {[%emt 0:14:30]} Qd4+ {[%emt 0:02:49]} 16. Kh1 {[%emt 0:02:26]} Ng6 {[%emt 0:00:05]} 17. Nxe4 {[%emt 0:04:23]} Qxe5 {[%emt 0:09:00]} 18. Nf3 {[%emt 0:08:51]} Qd5 {[%emt 0:00:28]} 19. Rad1 {[%emt 0:02:19]} Qc4 {[%emt 0:01:02]} 20. Rd3 {[%emt 0:03:51]} Bb6 {[%emt 0:03:08]} 21. b3 {[%emt 0:04:06]} Qc6 {[%emt 0:00:02]} 22. Nd4 {[%emt 0:01:11]} Bxd4 {[%emt 0:00:17]} 23. Rxd4 {[%emt 0:00:01]} Rfe8 {[%emt 0:02:43]} 24. Qd2 {[%emt 0:03:26]} Bxb3 {[%emt 0:03:16]} 25. cxb3 {[%emt 0:03:01]} Rxe4 {[%emt 0:00:02]} 26. Rxe4 {[%emt 0:00:20]} Qxe4 {[%emt 0:00:01]} 27. Qd7 {[%emt 0:00:00]} f6 {[%emt 0:01:03]} 28. Bd2 {[%emt 0:02:34]} Qc6 {[%emt 0:00:29]} 29. Qxc6 {[%emt 0:01:21]} bxc6 {[%emt 0:00:02]} 30. Ra1 {[%emt 0:00:01]} c5 {[%emt 0:00:34]} 31. Be3 {[%emt 0:02:27]} c4 {[%emt 0:00:03]} 32. bxc4 {[%emt 0:00:10]} bxc4 {[%emt 0:00:03]} 33. a4 {[%emt 0:00:25]} Ne5 {[%emt 0:00:09]} 34. a5 {[%emt 0:01:09]} Ra6 {[%emt 0:00:05]} 35. Bd2 {[%emt 0:00:17]} Kf7 {[%emt 0:00:10]} 36. Kg1 {[%emt 0:00:42]} Ke6 {[%emt 0:00:06]} 37. Kf1 {[%emt 0:00:53]} Kd5 {[%emt 0:00:05]} 38. Bc3 {[%emt 0:01:11]} Kc6 {[%emt 0:01:52]} 39. Ke2 {[%emt 0:00:32]} Nd3 {[%emt 0:00:23]} 40. Ke3 {[%emt 0:00:30]} Nc5 {[%emt 0:04:17]} 41. g4 {[%emt 0:03:40]} Nb3 {[%emt 0:00:25]} 42. Ra4 {[%emt 0:01:18]} Kd5 {[%emt 0:00:47]} 43. Kf4 {[%emt 0:02:15]} c5 {[%emt 0:00:56]} 44. Ra2 {[%emt 0:01:57]} Nd4 {[%emt 0:01:24]} 45. Rb2 {[%emt 0:04:03]} Kc6 {[%emt 0:00:31]} 46. Be1 {[%emt 0:03:30]} Nb3 {[%emt 0:02:37]} 47. Re2 {[%emt 0:02:56]} Nc1 {[%emt 0:00:04]} 48. Re6+ {[%emt 0:01:24]} Kb5 {[%emt 0:00:02]} 49. Kf5 {[%emt 0:01:21]} Rxe6 {[%emt 0:10:25]} 50. Kxe6 {[%emt 0:00:08]} Ne2 {[%emt 0:00:13]} 51. Kf7 {[%emt 0:05:39]} c3 {[%emt 0:00:06]} 52. Kxg7 {[%emt 0:00:09]} c2 {[%emt 0:00:02]} 53. Bd2 {[%emt 0:00:05]} c4 {[%emt 0:00:07]} 54. Kxh7 {[%emt 0:03:08]} c3 {[%emt 0:00:05]} 55. Be3 {[%emt 0:00:04]} c1=Q {[%emt 0:00:06]} 56. Bxc1 {[%emt 0:00:03]} Nxc1 {[%emt 0:00:07]} 0-1

[Event "Festival Groningen-A 2024"]
[Site "Groningen"]
[Date "2024.12.27"]
[Round "6.14"]
[White "Nicolai, Amir"]
[Black "Stijve, Theo"]
[Result "0-1"]
[ECO "D35"]
[WhiteElo "2156"]
[BlackElo "2396"]
[Annotator "TA"]
[PlyCount "80"]
[EventDate "2024.12.21"]
[EventType "swiss"]
[EventCountry "NED"]
[SourceTitle "playchess.com"]
[Source "ChessBase"]
[SourceQuality "1"]
[TimeControl "40/5400+30:1800+30"]

{[%evp 21,80,15,18,15,14,-14,-13,-6,-7,-24,3,-7,-12,-8,-20,-12,-8,-8,0,-44,-34,-50,-44,-39,-43,-66,-51,-51,-39,-58,-55,-39,-14,-14,-7,-30,-37,-28,-19,-91,-90,-86,-89,-93,-95,-88,-88,-87,-79,-103,-87,-87,-86,-154,-171,-138,0,-1180,-1157,-29993,-412]} 1. d4 {[%emt 0:00:05]} d5 {[%emt 0:00:07]} 2. c4 {[%emt 0:00:07]} e6 {[%emt 0:00:05]} 3. Nc3 {[%emt 0:00:05]} Nf6 {[%emt 0:00:10]} 4. cxd5 {[%emt 0:00:06]} exd5 {[%emt 0:00:07]} 5. Bg5 {[%emt 0:00:08]} c6 {[%emt 0:00:10]} 6. e3 {[%emt 0:00:07]} Be7 {[%emt 0:00:16]} 7. Bd3 {[%emt 0:00:13]} O-O {[%emt 0:00:41]} 8. Nge2 {[%emt 0:00:11]} Nbd7 {[%emt 0:01:18]} 9. O-O {[%emt 0:00:38]} Ne4 {[%emt 0:00:23]} 10. Bxe7 {[%emt 0:04:12]} Qxe7 {[%emt 0:01:25]} 11. Bxe4 {[%emt 0:00:58]} dxe4 {[%emt 0:00:10]} 12. Ng3 {[%emt 0:01:20]} Nf6 {[%emt 0:01:23]} 13. f3 {[%emt 0:03:33]} exf3 {[%emt 0:02:56]} 14. Qxf3 {[%emt 0:00:52]} Bg4 {[%emt 0:14:15]} 15. Qf2 {[%emt 0:08:03]} Rad8 {[%emt 0:07:34]} 16. e4 {[%emt 0:06:20]} Nh5 {[%emt 0:10:47]} 17. d5 {[%emt 0:08:03]} Nxg3 {[%emt 0:06:16]} 18. Qxg3 {[%emt 0:00:54]} Bh5 {[%emt 0:01:39]} 19. Qf2 {[%emt 0:05:29]} a5 {[%emt 0:07:26]} 20. dxc6 {[%emt 0:07:35]} bxc6 {[%emt 0:00:24]} 21. Qf5 {[%emt 0:00:42]} Qa7+ {[%emt 0:00:47]} 22. Kh1 {[%emt 0:06:15]} Bg6 {[%emt 0:00:32]} 23. Qf4 {[%emt 0:00:09]} Qb6 {[%emt 0:03:14]} 24. Rf2 {[%emt 0:05:33]} Rd4 {[%emt 0:04:07][%cal Og6e4]} 25. Re1 {[%emt 0:02:19]} Rb4 {[%emt 0:05:00]} 26. b3 {[%emt 0:03:29]} Qd4 {[%emt 0:01:37]} 27. Qg3 {[%emt 0:00:24]} Re8 {[%emt 0:01:55][%cal Oh7h6]} 28. Rd1 {[%emt 0:05:45]} Qc5 {[%emt 0:02:16]} 29. Rfd2 {[%emt 0:13:24]} h6 {[%emt 0:04:28]} (29... Bxe4 30. a3 Rxb3 31. Nxe4 Rxg3 32. Nxc5 Rxa3 33. Re2 $16) 30. Rd8 {[%emt 0:05:15]} (30. h3 $11) 30... Rxd8 $1 $17 {[%emt 0:02:05]} 31. Rxd8+ {[%emt 0:00:03]} Kh7 {[%emt 0:00:09]} 32. h3 {[%emt 0:01:28]} Bxe4 {[%emt 0:04:45]} 33. Nxe4 {[%emt 0:01:12]} Rxe4 {[%emt 0:01:11][%mdl 4096] Endgame KQR-KQR. Black is a pawn up.} 34. Rd1 {[%emt 0:02:23]} Qf5 {[%emt 0:04:58]} 35. Kh2 {[%emt 0:01:46]} h5 {[%emt 0:03:39]} 36. Rc1 {[%emt 0:02:29]} Qd5 {[%emt 0:04:32]} 37. Rc2 {[%emt 0:02:11]} (37. Qf2 $142) 37... h4 {[%emt 0:02:04]} 38. Qc7 {[%emt 0:00:32]} Re1 {[%emt 0:03:16]} ({Black should play} 38... f6 $17 {Hoping for ...a4.} 39. Rf2 Kg6) 39. Rf2 $2 {[%emt 0:02:38][%mdl 8192]} (39. Qf4 $11 Re4 40. Qc7) 39... Qd1 $19 {[%emt 0:00:49][%csl Gd1][%cal Re1h1]} 40. g4 {[%emt 0:01:09]} Rh1+ {[%emt 0:00:33]} (40... Qd5 $142 41. Rg2 Qf3 42. Qd6 Qf1 43. Qd3+ Qxd3 44. Rg1 Re2+ 45. Rg2 Qg3+ 46. Kh1 Qxg2#) 0-1

[Event "Festival Groningen-A 2024"]
[Site "Groningen"]
[Date "2024.12.27"]
[Round "6.15"]
[White "Van der Hagen, Loek"]
[Black "Keuning, Selwin"]
[Result "1/2-1/2"]
[ECO "B48"]
[WhiteElo "2315"]
[BlackElo "2180"]
[Annotator "RC"]
[PlyCount "64"]
[EventDate "2024.12.21"]
[EventType "swiss"]
[EventCountry "NED"]
[SourceTitle "playchess.com"]
[Source "ChessBase"]
[SourceQuality "1"]
[TimeControl "40/5400+30:1800+30"]

1. e4 {[%emt 0:00:03]} c5 {[%emt 0:00:07]} 2. Nf3 {[%emt 0:00:11]} Nc6 {[%emt 0:00:06]} 3. d4 {[%emt 0:00:06]} cxd4 {[%emt 0:00:07]} 4. Nxd4 {[%emt 0:00:03]} e6 {[%emt 0:00:08]} 5. Nc3 {[%emt 0:00:15]} Qc7 {[%emt 0:00:06]} 6. Be3 {[%emt 0:00:07]} a6 {[%emt 0:00:04]} 7. Qf3 {[%emt 0:00:06]} h5 {[%emt 0:00:04]} 8. O-O-O {[%emt 0:13:44]} b5 {[%emt 0:00:37]} 9. Qg3 {[%emt 0:07:16]} Qxg3 {[%emt 0:00:32]} 10. hxg3 {[%emt 0:00:08]} Bc5 {[%emt 0:00:14]} 11. Nf5 {[%emt 0:02:45]} Bxe3+ {[%emt 0:01:09]} 12. Nxe3 {[%emt 0:00:04]} Bb7 {[%emt 0:04:53]} 13. f3 {[%emt 0:06:53]} Nge7 {[%emt 0:03:58]} 14. a4 {[%emt 0:03:55]} b4 {[%emt 0:08:32]} 15. Ne2 {[%emt 0:00:10]} O-O-O {[%emt 0:22:34]} 16. Nf4 {[%emt 0:02:15]} g6 {[%emt 0:08:52]} 17. Nc4 {[%emt 0:04:35]} Kc7 {[%emt 0:03:04]} 18. e5 {[%emt 0:23:53]} Nf5 {[%emt 0:06:44]} 19. Rh3 {[%emt 0:11:04]} d5 {[%emt 0:08:21]} 20. exd6+ {[%emt 0:00:04]} Nxd6 {[%emt 0:00:03]} 21. Nxd6 {[%emt 0:03:01]} Rxd6 {[%emt 0:00:56]} 22. Rxd6 {[%emt 0:00:38]} Kxd6 {[%emt 0:00:01]} 23. Bc4 {[%emt 0:04:44]} Rc8 {[%emt 0:12:48]} 24. Rh1 {[%emt 0:08:00]} Nd4 {[%emt 0:04:47]} 25. b3 {[%emt 0:01:36]} e5 {[%emt 0:02:30]} 26. Rd1 {[%emt 0:00:23]} Ke7 {[%emt 0:09:12]} 27. Nd3 {[%emt 0:05:04]} f6 {[%emt 0:00:45]} 28. Nxb4 {[%emt 0:01:03]} a5 {[%emt 0:00:15]} 29. Na2 {[%emt 0:01:28]} Nf5 {[%emt 0:00:22]} 30. Bd3 {[%emt 0:01:11]} Nxg3 {[%emt 0:00:26]} 31. c4 {[%emt 0:00:32]} g5 {[%emt 0:01:30]} 32. Nc3 {[%emt 0:00:12]} f5 {[%emt 0:00:54]} 1/2-1/2

[Event "Festival Groningen-A 2024"]
[Site "Groningen"]
[Date "2024.12.27"]
[Round "6.16"]
[White "Schoorl, Rob"]
[Black "Kazarjan, Gachatur"]
[Result "1-0"]
[ECO "A09"]
[WhiteElo "2295"]
[BlackElo "2067"]
[Annotator "RC"]
[PlyCount "75"]
[EventDate "2024.12.21"]
[EventType "swiss"]
[EventCountry "NED"]
[SourceTitle "playchess.com"]
[Source "ChessBase"]
[SourceQuality "1"]
[TimeControl "40/5400+30:1800+30"]

1. Nf3 {[%emt 0:00:07]} d5 {[%emt 0:00:05]} 2. g3 {[%emt 0:00:08]} c5 {[%emt 0:00:28]} 3. Bg2 {[%emt 0:00:09]} Nc6 {[%emt 0:00:05]} 4. O-O {[%emt 0:01:45]} e5 {[%emt 0:00:05]} 5. d3 {[%emt 0:00:26]} Be7 {[%emt 0:00:24]} 6. c4 {[%emt 0:01:10]} d4 {[%emt 0:01:01]} 7. e3 {[%emt 0:02:59]} h5 {[%emt 0:05:13]} 8. exd4 {[%emt 0:01:04]} exd4 {[%emt 0:00:12]} 9. Re1 {[%emt 0:03:39]} Kf8 {[%emt 0:21:44]} 10. h4 {[%emt 0:22:08]} Nf6 {[%emt 0:04:54]} 11. Bg5 {[%emt 0:04:35]} Ng4 {[%emt 0:12:42]} 12. Bxe7+ {[%emt 0:03:24]} Nxe7 {[%emt 0:01:04]} 13. Nbd2 {[%emt 0:02:02]} Nf5 {[%emt 0:01:58]} 14. b4 {[%emt 0:07:48]} cxb4 {[%emt 0:07:06]} 15. Qa4 {[%emt 0:02:47]} a5 {[%emt 0:03:14]} 16. a3 {[%emt 0:00:47]} Bd7 {[%emt 0:02:25]} 17. Qb3 {[%emt 0:01:04]} Qc7 {[%emt 0:04:26]} 18. axb4 {[%emt 0:03:08]} a4 {[%emt 0:04:00]} 19. Qb2 {[%emt 0:02:05]} Nxf2 {[%emt 0:04:37]} 20. Kxf2 {[%emt 0:03:48]} Qxg3+ {[%emt 0:00:06]} 21. Kg1 {[%emt 0:08:46]} Nxh4 {[%emt 0:03:05]} 22. Nxh4 {[%emt 0:01:10]} Qxh4 {[%emt 0:00:16]} 23. Nf3 {[%emt 0:00:38]} Qg3 {[%emt 0:06:17]} 24. Qf2 {[%emt 0:07:17]} Qxf2+ {[%emt 0:00:51]} 25. Kxf2 {[%emt 0:00:03]} Rh6 {[%emt 0:01:11]} 26. b5 {[%emt 0:04:54]} Rf6 {[%emt 0:01:50]} 27. Re5 {[%emt 0:03:02]} Bg4 {[%emt 0:02:58]} 28. Kg3 {[%emt 0:00:57]} Bf5 {[%emt 0:01:36]} 29. Nxd4 {[%emt 0:01:15]} Bxd3 {[%emt 0:00:08]} 30. Bxb7 {[%emt 0:02:08]} Rd8 {[%emt 0:00:33]} 31. Rxa4 {[%emt 0:02:05]} h4+ {[%emt 0:00:21]} 32. Kg2 {[%emt 0:03:31]} g5 {[%emt 0:00:39]} 33. Bd5 {[%emt 0:02:04]} Rf4 {[%emt 0:00:40]} 34. b6 {[%emt 0:01:40]} Rxd4 {[%emt 0:02:05]} 35. b7 {[%emt 0:00:16]} Bxc4 {[%emt 0:01:10]} 36. Rxc4 {[%emt 0:00:41]} Rxc4 {[%emt 0:00:09]} 37. Bxc4 {[%emt 0:00:08]} Rb8 {[%emt 0:00:01]} 38. Ba6 {[%emt 0:00:10]} 1-0

[Event "Festival Groningen-A 2024"]
[Site "Groningen"]
[Date "2024.12.27"]
[Round "6.17"]
[White "De Jong, Migchiel"]
[Black "Ten Dam, Bram"]
[Result "1/2-1/2"]
[ECO "D45"]
[WhiteElo "2275"]
[BlackElo "2002"]
[Annotator "RC"]
[PlyCount "139"]
[EventDate "2024.12.21"]
[EventType "swiss"]
[EventCountry "NED"]
[SourceTitle "playchess.com"]
[Source "ChessBase"]
[SourceQuality "1"]
[TimeControl "40/5400+30:1800+30"]

1. Nf3 {[%emt 0:00:23]} Nf6 {[%emt 0:00:11]} 2. c4 {[%emt 0:01:42]} c6 {[%emt 0:00:37]} 3. Nc3 {[%emt 0:04:44]} d5 {[%emt 0:00:30]} 4. e3 {[%emt 0:00:08]} e6 {[%emt 0:03:05]} 5. b3 {[%emt 0:01:38]} Bd6 {[%emt 0:01:16]} 6. Bb2 {[%emt 0:01:25]} O-O {[%emt 0:00:53]} 7. d4 {[%emt 0:02:01]} Nbd7 {[%emt 0:02:52]} 8. Be2 {[%emt 0:02:14]} Re8 {[%emt 0:03:14]} 9. O-O {[%emt 0:00:38]} b6 {[%emt 0:01:01]} 10. Qc2 {[%emt 0:10:32]} Bb7 {[%emt 0:02:04]} 11. Rad1 {[%emt 0:02:24]} Qe7 {[%emt 0:04:35]} 12. e4 {[%emt 0:05:26]} dxe4 {[%emt 0:00:19]} 13. Nxe4 {[%emt 0:01:03]} Nxe4 {[%emt 0:02:13]} 14. Qxe4 {[%emt 0:00:06]} Nf6 {[%emt 0:01:33]} 15. Qc2 {[%emt 0:03:46]} h6 {[%emt 0:03:49]} 16. Ne5 {[%emt 0:03:34]} c5 {[%emt 0:03:06]} 17. dxc5 {[%emt 0:01:13]} Bxc5 {[%emt 0:02:54]} 18. Bf3 {[%emt 0:04:27]} Rad8 {[%emt 0:16:57]} 19. Qe2 {[%emt 0:03:01]} Rxd1 {[%emt 0:06:36]} 20. Rxd1 {[%emt 0:00:09]} Bxf3 {[%emt 0:00:23]} 21. Qxf3 {[%emt 0:00:26]} Rd8 {[%emt 0:00:47]} 22. Nd3 {[%emt 0:03:49]} Bd4 {[%emt 0:02:42]} 23. g3 {[%emt 0:01:11]} Bxb2 {[%emt 0:40:23]} 24. Nxb2 {[%emt 0:02:36]} Rxd1+ {[%emt 0:00:00]} 25. Nxd1 {[%emt 0:00:15]} Qd7 {[%emt 0:00:00]} 26. Nc3 {[%emt 0:01:38]} Qd2 {[%emt 0:00:00]} 27. Kg2 {[%emt 0:00:35]} a6 {[%emt 0:00:00]} 28. h3 {[%emt 0:03:27]} Qc2 {[%emt 0:00:00]} 29. Qe3 {[%emt 0:01:11]} h5 {[%emt 0:00:00]} 30. Qd4 {[%emt 0:01:42]} Kh7 {[%emt 0:00:00]} 31. b4 {[%emt 0:01:58]} Qb2 {[%emt 0:00:00]} 32. c5 {[%emt 0:00:39]} bxc5 {[%emt 0:00:00]} 33. Qxc5 {[%emt 0:00:47]} h4 {[%emt 0:00:00]} 34. g4 {[%emt 0:00:24]} Qd2 {[%emt 0:00:00]} 35. a4 {[%emt 0:00:43]} Qd3 {[%emt 0:00:00]} 36. Qe3 {[%emt 0:01:10]} Qc4 {[%emt 0:00:00]} 37. b5 {[%emt 0:00:32]} axb5 {[%emt 0:00:00]} 38. axb5 {[%emt 0:00:10]} Nd5 {[%emt 0:00:00]} 39. Qe4+ {[%emt 0:02:21]} Qxe4+ {[%emt 0:00:00]} 40. Nxe4 {[%emt 0:00:04]} Kg6 {[%emt 0:00:00]} 41. Kf3 {[%emt 0:31:54]} f5 {[%emt 0:32:10]} 42. gxf5+ {[%emt 0:03:56]} exf5 {[%emt 0:03:14]} 43. Nd2 {[%emt 0:04:33]} Kf6 {[%emt 0:00:00]} 44. Nc4 {[%emt 0:00:00]} g5 {[%emt 0:00:00]} 45. b6 {[%emt 0:00:00]} Nb4 {[%emt 0:00:00]} 46. Na5 {[%emt 0:00:00]} Na6 {[%emt 0:00:00]} 47. Nc6 {[%emt 0:00:00]} Nc5 {[%emt 0:00:00]} 48. Na5 {[%emt 0:00:00]} Na6 {[%emt 0:00:00]} 49. b7 {[%emt 0:00:00]} Nb8 {[%emt 0:00:00]} 50. Nc4 {[%emt 0:00:00]} Nc6 {[%emt 0:00:00]} 51. Ne3 {[%emt 0:00:00]} Nd4+ {[%emt 0:00:00]} 52. Kg2 {[%emt 0:00:00]} Nc6 {[%emt 0:00:00]} 53. Kf1 {[%emt 0:00:00]} Ke5 {[%emt 0:00:00]} 54. Ke2 {[%emt 0:00:00]} Nb8 {[%emt 0:00:00]} 55. Ng2 {[%emt 0:00:00]} g4 {[%emt 0:00:00]} 56. Nxh4 {[%emt 0:00:00]} gxh3 {[%emt 0:00:00]} 57. Kf3 {[%emt 0:00:00]} Kd6 {[%emt 0:00:00]} 58. Nxf5+ {[%emt 0:00:00]} Kc7 {[%emt 0:00:00]} 59. Kg3 {[%emt 0:00:00]} Kxb7 {[%emt 0:00:00]} 60. Kxh3 {[%emt 0:00:00]} Nd7 {[%emt 0:00:00]} 61. Nd4 {[%emt 0:00:00]} Kc7 {[%emt 0:00:00]} 62. Kg4 {[%emt 0:00:00]} Kd6 {[%emt 0:00:00]} 63. Kf5 {[%emt 0:00:00]} Ke7 {[%emt 0:00:00]} 64. Nc6+ {[%emt 0:00:00]} Kd6 {[%emt 0:00:00]} 65. Nd8 {[%emt 0:00:00]} Ke7 {[%emt 0:00:00]} 66. Nb7 {[%emt 0:00:00]} Kf7 {[%emt 0:00:00]} 67. f4 {[%emt 0:00:00]} Ke7 {[%emt 0:00:00]} 68. Na5 {[%emt 0:00:00]} Kf7 {[%emt 0:00:00]} 69. Nc6 {[%emt 0:00:00]} Nc5 {[%emt 0:00:00]} 70. Ne5+ {[%emt 0:00:00]} 1/2-1/2